Cogmind - Beta 16.1 @@@ ROGUE MODE // 2026.06.22 @ 15:13:33 Player: Lolterzard Result: Destroyed by Y7-5IO(z) with Gauss Cannon Performance ------------- Evolutions (3) 1500 Regions Visited (9) 1800 Robots Destroyed (159) 795 Value Destroyed (4459) 4459 Prototype IDs (30) 600 Alien Tech Used (0) 0 Bonus (712) 712 TOTAL SCORE: 9866 Bonus ------- High Alert Combat Kills 112 Aligned with FarCom 300 Met Imprinter 300 Cogmind --------- Core Integrity 0/700 Matter 258/450 Energy 17/100 System Corruption 4% Temperature Cool (0) Movement Treading (240) Ox1 Location -7/Zion Parts ------- > --- POWER (1) -------- (None) > --- PROPULSION (4) --- Medium Treads > --- UTILITY (6) ------ Large Storage Unit Large Matter Pod Makeshift Utility Shielding Makeshift Utility Shielding (fused) Improved Shield Generator Hacking Suite > --- WEAPON (2) ------- Flak Gun > --- INVENTORY (15) --- Improved Deuterium Engine Potential Leg Potential Leg Core Analyzer Hardened Heavy Armor Plating Flak Gun Peak State ------------ > --- POWER ------------ Heavy Ion Engine > --- PROPULSION ------- Advanced Treads Medium Treads Medium Treads Medium Treads > --- UTILITY ---------- Large Storage Unit Seismic Detector Hardened Heavy Armor Plating Hardened Heavy Armor Plating > --- WEAPON ----------- Assault Cannon Flak Cannon > --- INVENTORY -------- Improved Deuterium Engine Potential Leg Potential Leg Improved Heat Sink Hardened Heavy Armor Plating Improved Medium Armor Plating Improved Shield Generator Hacking Suite Minigun Minigun Improved Light Cannon Rocket Launcher Rocket Launcher Rocket Launcher [Rating: 48] Favorites ----------- Power Enhanced Nuclear Core Engine Ion Engine Power Core Enhanced Nuclear Core Propulsion Medium Treads Treads Medium Treads Leg Potential Leg Wheel Wheel Hover Unit Gravmag System Utility Large Storage Unit Device Improved Heat Sink Storage Large Storage Unit Processor Visual Processing Unit Hackware Hacking Suite Protection Hardened Heavy Armor Plating Weapon Assault Rifle Ballistic Gun Assault Rifle Ballistic Cannon Improved Light Cannon Launcher Rocket Launcher Build | -11 -10 -10 -10 -9 -8 -7 -7 -7 -7 ------- Run | Yrd Mat Min Exi Min Mat Fac Low Low Zio Slots Evolved 6 | . . . . . 4 2 . . . Power . | . . . . . . . . . . Propulsion 2 | . . . . . 2 . . . . Utility 4 | . . . . . 2 2 . . . Weapon . | . . . . . . . . . . Parts Attached 89 | 6 3 6 2 4 19 36 4 7 2 Power 12 | 1 . 1 . 2 3 4 . 1 . Engine 7 | 1 . . . 2 3 1 . . . Core 5 | . . 1 . . . 3 . 1 . Reactor . | . . . . . . . . . . Propulsion 32 | 2 . 2 2 1 5 16 2 1 1 Treads 12 | 2 . 2 . 1 5 . . 1 1 Leg 2 | . . . 2 . . . . . . Wheel 12 | . . . . . . 12 . . . Hover 6 | . . . . . . 4 2 . . Flight . | . . . . . . . . . . Utility 24 | 1 3 . . . 4 13 . 3 . Device 7 | . . . . . 2 5 . . . Storage 4 | 1 2 . . . . 1 . . . Processor 1 | . 1 . . . . . . . . Hackware 1 | . . . . . . 1 . . . Protection 11 | . . . . . 2 6 . 3 . Artifact . | . . . . . . . . . . Weapon 21 | 2 . 3 . 1 7 3 2 2 1 Energy Gun . | . . . . . . . . . . Energy Cannon . | . . . . . . . . . . Ballistic Gun 11 | 2 . . . 1 4 1 2 . 1 Ballistic Cannon 5 | . . . . . 2 2 . 1 . Launcher 5 | . . 3 . . 1 . . 1 . Special Weapon . | . . . . . . . . . . Impact Weapon . | . . . . . . . . . . Slashing Weapon . | . . . . . . . . . . Piercing Weapon . | . . . . . . . . . . Special Melee Weapon . | . . . . . . . . . . Unidentified Prototypes 5 | . . . . . 4 1 . . . Parts Lost 42 | . . 1 . . 3 17 7 7 7 Power 4 | . . . . . 1 1 . 1 1 Propulsion 14 | . . . . . . 6 4 2 2 Utility 12 | . . . . . 1 7 1 2 1 Weapon 12 | . . 1 . . 1 3 2 2 3 Highest Loss Streak 7 | . . 1 . . 1 4 7 7 4 To Critical Strikes . | . . . . . . . . . . Average Backups 10 | 1 7 10 12 12 11 11 12 11 8 Power 1 | . 1 1 1 1 1 1 2 1 1 Propulsion 2 | . . 2 2 2 2 2 3 2 2 Utility 3 | . 2 3 5 5 3 2 2 3 2 Weapon 4 | . 3 3 4 4 4 5 4 4 2 Tool/Special . | . . . . . . . . . . Unused Backups 14 | . 1 1 . 2 5 1 . 1 3 Power 3 | . . . . 1 1 . . . 1 Propulsion . | . . . . . . . . . . Utility 5 | . . 1 . . 2 . . . 2 Weapon 6 | . 1 . . 1 2 1 . 1 . Tool/Special . | . . . . . . . . . . Average Slot Usage (%) 88 | . 97 99 100 100 87 87 84 77 82 Engine 6 | . 14 14 14 14 8 3 . . . Core 2 | . . . . . . 3 7 7 6 Treads 18 | . 28 28 18 21 34 6 . 2 7 Wheel 3 | . . . . . . 16 . . . Hover 2 | . . . . . . 2 16 7 5 Device 4 | . . . . . 6 9 7 3 . Storage 11 | . 14 14 14 14 9 9 15 15 15 Processor 3 | . 11 14 14 14 2 . . . . Hackware 2 | . . . . . . 4 7 7 7 Protection 10 | . . . . . 8 12 13 16 22 Ballistic Gun 10 | . 28 19 28 28 9 . 14 7 . Ballistic Cannon 6 | . . . . . 8 14 . 3 6 Launcher 1 | . . 8 . . . . . 3 6 Peak Build Rating 48 | 6 9 13 29 29 45 48 45 42 39 Average Rating 31 | 4 8 10 17 17 39 34 41 37 36 On Entrance 23 | . 6 9 11 29 15 39 45 42 34 Avg Prop Armor Cover (%) 8 | 29 . 10 . . 4 3 . . 8 Naked Turns . | . . . . . . . . . . Heaviest Build 80 | 14 29 33 29 32 60 80 50 50 48 Greatest Support 112 | 40 40 40 60 60 112 106 36 20 48 Greatest Overweight (x) 14 | 4 . 1 9 . 1 5 2 14 13 Average Overweight (x) . | . . . . . . . 1 2 4 Largest Inventory Capacity 15 | 8 15 15 15 15 15 15 15 15 15 Average Capacity 14 | 7 9 15 15 15 15 15 15 15 15 Most Carried 15 | 2 10 15 15 15 15 15 15 15 10 Average Carried 12 | 1 7 11 14 14 14 11 13 12 9 Final Capacity 15 | 8 15 15 15 15 15 15 15 15 15 Final Carried 15 | 2 10 15 15 15 13 15 15 10 7 Class Distribution -------------------- 85% | Mutant 14% | Scavenger-Mutant Dominant Class ---------------- Mutant | -10/Materials Mutant | -10/Mines Mutant | -10/Exiles Mutant | -9/Mines Mutant | -8/Materials Scavenger-Mutant | -7/Factory Mutant | -7/Lower Caves Mutant | -7/Lower Caves Mutant | -7/Zion Resources | -11 -10 -10 -10 -9 -8 -7 -7 -7 -7 ----------- Run | Yrd Mat Min Exi Min Mat Fac Low Low Zio Matter Collected 5020 | 135 389 346 . 150 1350 1991 255 285 119 Remotely 917 | . . . . . . 778 139 . . Salvage Created 4660 | . 302 266 . 138 1950 1629 141 109 125 Parts 281 | . 26 18 . 12 120 88 5 3 9 Haulers Intercepted 11 | . 2 . . . 5 4 . . . Recyclers Shooed 1 | . . . . . . 1 . . . Parts Field Recycled . | . . . . . . . . . . Retrieved Matter . | . . . . . . . . . . Parts Self-Destructed 14 | . . . . . . . 7 7 . Prevented . | . . . . . . . . . . Parts Restored . | . . . . . . . . . . Kills | -11 -10 -10 -10 -9 -8 -7 -7 -7 -7 ------- Run | Yrd Mat Min Exi Min Mat Fac Low Low Zio Combat Hostiles Destroyed 93 | . 5 7 . 5 32 30 6 5 3 Guns 39 | . 5 3 . 5 19 2 4 . 1 Cannons 46 | . . . . . 13 27 2 2 2 AOE 7 | . . 4 . . . . . 3 . Classes Destroyed 20 | . 5 3 . . 6 2 . 1 3 Worker 19 | . 1 1 . . 7 10 . . . Builder 7 | . 2 . . . 2 3 . . . Tunneler 3 | . . 2 . . 1 . . . . Hauler 11 | . 2 . . . 5 4 . . . Recycler 15 | . . 2 . . 4 9 . . . Mechanic 1 | . . . . . . 1 . . . Operator 2 | . . . . . 1 1 . . . Watcher 7 | . . . . . 4 3 . . . Swarmer 20 | . 3 5 . 3 6 . 3 . . Grunt 38 | . 2 1 . 2 13 16 1 3 . Brawler 3 | . . . . . 1 1 . 1 . Sentry 14 | . . . . . 8 5 1 . . Demolisher 1 | . . 1 . . . . . . . Specialist 2 | . . . . . 2 . . . . Hunter 6 | . . . . . 2 3 1 . . Programmer 5 | . . . . . . 5 . . . Behemoth 1 | . . . . . . . . 1 . Zionite 1 | . . . . . . . . . 1 Tinkerer 2 | . . . . . . . . . 2 Mutant 3 | . . . . . . . . . 3 Best Kill Streak 8 | . 3 8 . 3 6 5 5 2 5 Combat Bots Only 5 | . 2 3 . 3 4 3 5 2 3 Max Kills in Single Turn 3 | . 1 3 . 1 2 2 2 2 2 Gunslinging 1 | . . . . . . . 1 . . Exploded 2 | . . 2 . . . . . 2 . Melee . | . . . . . . . . . . Uniques/NPCs Destroyed . | . . . . . . . . . . Combat | -11 -10 -10 -10 -9 -8 -7 -7 -7 -7 -------- Run | Yrd Mat Min Exi Min Mat Fac Low Low Zio Hostile Shots Fired 924 | . 46 36 . 21 184 414 70 54 99 Missed 267 | . 14 10 . 5 47 116 20 20 35 Hits 657 | . 32 26 . 16 137 298 50 34 64 Melee 24 | . . . . . 1 . . 4 19 Projectile 633 | . 32 26 . 16 136 298 50 30 45 AOE 4 | . . 4 . . . . . . . Critical Strikes 18 | . . . . 1 3 12 . 2 . Actively Blocked 1 | . . . . . . . . 1 . Part Disruptions 1 | . . . . . . 1 . . . Damage Taken 9419 | . 312 466 . 176 2012 4010 511 836 1096 Core 1024 | . 38 113 . 14 147 307 73 21 311 Absorbed by Shields 78 | . . . . . . . . . 78 Redirected to Shielding 20 | . . . . . . . . 19 1 Regen/Repaired (Parts) 834 | . . . . . 630 110 . . 94 Core Remaining (%) 69 | 100 . . . 34 73 . . . . Volleys Fired 424 | 2 37 22 . 11 132 166 15 18 21 Largest 2 | 2 2 2 . 2 2 2 2 2 2 Hottest 77 | 40 40 66 . 43 74 74 61 77 77 Shots Fired 809 | 4 74 41 . 22 252 323 29 29 35 Gun 349 | 4 74 25 . 22 173 9 21 . 21 Cannon 424 | . . . . . 79 314 8 13 10 Launcher 36 | . . 16 . . . . . 16 4 Special . | . . . . . . . . . . Kinetic 773 | 4 74 25 . 22 252 323 29 13 31 Thermal . | . . . . . . . . . . Explosive 36 | . . 16 . . . . . 16 4 Electromagnetic . | . . . . . . . . . . Robot Hit Streak 18 | 1 5 6 . 6 10 16 7 10 18 Robot Miss Streak 9 | 2 3 4 . 3 9 6 7 2 8 Penetration Max . | . . . . . . . . . . Secondary Targets 7 | . 1 . . 2 3 . 1 . . Max Gunslinging Chain 1 | . 1 . . 1 1 . 1 . . Shots Hit Robots 556 | 2 41 19 . 15 184 221 27 19 28 Core Hits 372 | 1 15 22 . 9 118 141 27 16 23 Critical Kills 2 | . . . . . 1 . . . 1 Critical Parts Destroyed . | . . . . . . . . . . Critical Strikes 12 | . . . . . 4 3 1 2 2 Destroy 2 | . . . . . 1 . . . 1 Blast 10 | . . . . . 3 3 1 2 1 Melee Attacks . | . . . . . . . . . . Impact . | . . . . . . . . . . Slashing . | . . . . . . . . . . Piercing . | . . . . . . . . . . Sneak Attacks . | . . . . . . . . . . Combat Hostiles . | . . . . . . . . . . Follow-up Attacks . | . . . . . . . . . . Damage Inflicted 11889 | 27 587 636 . 243 3058 4909 424 858 1147 Guns 3514 | 27 587 105 . 224 1789 169 315 . 298 Cannons 6428 | . . . . . 1269 4549 109 217 284 Explosions 1808 | . . 524 . . . 78 . 641 565 Melee . | . . . . . . . . . . Ramming 139 | . . 7 . 19 . 113 . . . Kinetic 9942 | 27 587 105 . 224 3058 4718 424 217 582 Thermal 78 | . . . . . . 78 . . . Explosive 1730 | . . 524 . . . . . 641 565 Electromagnetic . | . . . . . . . . . . Impact . | . . . . . . . . . . Slashing . | . . . . . . . . . . Piercing . | . . . . . . . . . . Highest Corruption 5 | . . . . . 3 5 5 5 5 Average Corruption 3 | . . . . . 3 2 5 5 4 Corruption Purged . | . . . . . . . . . . Corruption Blocked . | . . . . . . . . . . Effects 119 | . . . . . 37 37 15 24 6 Message Errors 30 | . . . . . 11 12 3 4 . Matter Fused 30 | . . . . . 8 10 4 7 1 Heat Flow Errors 19 | . . . . . 5 3 4 6 1 Energy Discharges 15 | . . . . . 6 4 3 2 . Parts Fused 1 | . . . . . . . . 1 . Data Loss (minor) 15 | . . . . . 5 4 1 3 2 Data Loss (major) 2 | . . . . . 1 . . . 1 Misfires 4 | . . . . . 1 3 . . . Alerts 2 | . . . . . . 1 . 1 . Weapon Failures 1 | . . . . . . . . . 1 Overload Shots . | . . . . . . . . . . Overflow Damage 75 | . . . . . . 62 . . 13 Projectiles 14 | . . . . . . 12 . . 2 Explosions 59 | . . . . . . 48 . . 11 Melee 2 | . . . . . . 2 . . . Knockbacks 74 | . . . . . 14 59 1 . . Impact 1 | . . . . . . 1 . . . Kinetic 69 | . . . . . 14 54 1 . . Secondary 4 | . . . . . . 4 . . . Self-Inflicted Damage 315 | . . 51 . . 71 193 . . . Shots 6 | . . 2 . . 2 2 . . . Rammed 12 | . . 2 . 1 . 9 . . . Targets Rammed 13 | . . 2 . 2 . 9 . . . Kicked 1 | . . . . 1 . . . . . Crushed . | . . . . . . . . . . Highest Temperature 535 | . 3 18 . 21 287 535 265 239 118 Average Temperature 107 | . 3 8 . 9 51 170 121 56 23 Received Heat Transfer 2387 | . 90 27 . 78 594 1278 123 150 47 Effects 26 | . . . . . 1 24 1 . . Shutdowns 5 | . . . . . . 5 . . . Energy Bleed 5 | . . . . . . 4 1 . . Interference 7 | . . . . . 1 6 . . . Matter Decay 3 | . . . . . . 3 . . . Short Circuit 3 | . . . . . . 3 . . . Damage (minor) 3 | . . . . . . 3 . . . Siege Activations . | . . . . . . . . . . Martial Activations . | . . . . . . . . . . Shielding Activations . | . . . . . . . . . . Robots Disrupted . | . . . . . . . . . . Combat Hostiles . | . . . . . . . . . . Robots Corrupted 2 | . . . . . . 2 . . . Combat Hostiles 1 | . . . . . . 1 . . . Parts Fried 7 | . . . . . . 7 . . . Impact Corruptions 2 | . . . . . . 2 . . . Robots Melted . | . . . . . . . . . . Combat Hostiles . | . . . . . . . . . . Parts Melted . | . . . . . . . . . . Heat Transferred 50 | . . . . . . 50 . . . Parts Sabotaged . | . . . . . . . . . . Parts Stolen . | . . . . . . . . . . Parts Stripped . | . . . . . . . . . . Power Chain Reactions . | . . . . . . . . . . Alert | -11 -10 -10 -10 -9 -8 -7 -7 -7 -7 ------- Run | Yrd Mat Min Exi Min Mat Fac Low Low Zio Maximum Alert Level 2 | . . . . . 1 2 . . . Low Security (%) 66 | 100 100 100 . 100 72 25 . . . Level 1 25 | . . . . . 27 46 . . . Level 2 8 | . . . . . . 27 . . . Level 3 . | . . . . . . . . . . Level 4 . | . . . . . . . . . . Level 5 . | . . . . . . . . . . High Security . | . . . . . . . . . . Max Security . | . . . . . . . . . . Peak Influence 513 | . 73 127 . 100 326 513 . . . Initial 140 | . . . . . 12 140 . . . Average 153 | . 16 27 . 24 134 306 . . . Influence Increases 3169 | . 195 293 . 120 1104 1207 130 120 . Destroy 0b10 Robot/C 1800 | . 100 140 . 100 640 600 120 100 . Destroy 0b10 Robot/NC 325 | . 25 25 . . 120 155 . . . Destroy Leader 506 | . 24 40 . 20 198 194 10 20 . Successful Hack 70 | . . . . . 31 39 . . . Disable Machine 240 | . 15 15 . . 75 135 . . . Destroy Structure 108 | . 1 73 . . 10 24 . . . Lose Combat Pursuer 120 | . 30 . . . 30 60 . . . Influence Decreases 3169 | . 195 293 . 88 826 1014 559 192 2 Entered New Map 394 | . . . . . 20 170 187 15 2 Time Decay 2346 | . 195 284 . 88 626 674 302 177 . Lost Part 279 | . . 9 . . 30 170 70 . . Purge Threat 150 | . . . . . 150 . . . . Squads Dispatched 24 | . . . . . 6 18 . . . Investigation 9 | . . . . . 4 5 . . . Extermination 5 | . . . . . . 5 . . . Reinforcement 9 | . . . . . 2 7 . . . Assault 1 | . . . . . . 1 . . . Garrison . | . . . . . . . . . . Intercept . | . . . . . . . . . . Searches Triggered . | . . . . . . . . . . Construction Impeded 2 | . . . . . . 2 . . . Haulers Reinforced 2 | . . . . . . 2 . . . Active Scanning Responses . | . . . . . . . . . . Cargo Convoy Interrupts . | . . . . . . . . . . Stealth | -11 -10 -10 -10 -9 -8 -7 -7 -7 -7 --------- Run | Yrd Mat Min Exi Min Mat Fac Low Low Zio Distress Signals 6 | . . . . . 3 3 . . . Communications Jammed . | . . . . . . . . . . Distress Signals . | . . . . . . . . . . Times Spotted 158 | . 7 9 . 5 49 66 6 5 11 Peak Tracking Total 8 | . 3 3 . 3 5 5 5 4 8 Tactical Retreats 6 | . 1 . . . 2 2 . . 1 Traps | -11 -10 -10 -10 -9 -8 -7 -7 -7 -7 ------- Run | Yrd Mat Min Exi Min Mat Fac Low Low Zio Traps Triggered 4 | . . . . . 1 3 . . . Indirectly . | . . . . . . . . . . Trap Hack Attempts . | . . . . . . . . . . Triggered . | . . . . . . . . . . Disarmed 1 | . . . . . 1 . . . . Reprogrammed 6 | . 6 . . . . . . . . Reused . | . . . . . . . . . . Traps Extracted . | . . . . . . . . . . Installed . | . . . . . . . . . . Triggered . | . . . . . . . . . . Most Traps Carried 2 | . . 2 2 2 2 . . . . Machines | -11 -10 -10 -10 -9 -8 -7 -7 -7 -7 ---------- Run | Yrd Mat Min Exi Min Mat Fac Low Low Zio Machines Disabled 20 | . 1 1 . . 5 9 . . 4 Max in Single Turn 6 | . 1 1 . . 2 6 . . 1 Machines Repaired . | . . . . . . . . . . Machines Dismantled . | . . . . . . . . . . Machines Sabotaged . | . . . . . . . . . . Overloaded Fab Kills . | . . . . . . . . . . Hacking | -11 -10 -10 -10 -9 -8 -7 -7 -7 -7 --------- Run | Yrd Mat Min Exi Min Mat Fac Low Low Zio Machines Accessed 28 | . 3 1 1 . 14 7 1 1 . Terminals 17 | . 3 . . . 10 4 . . . Fabricators . | . . . . . . . . . . Repair Stations 3 | . . . . . 2 1 . . . Recycling Units 2 | . . . . . 1 1 . . . Scanalyzers 2 | . . . . . 1 1 . . . Garrison Access . | . . . . . . . . . . Total Hacks 72 | . 6 1 1 . 44 18 1 1 . Successful 42 | . 4 1 1 . 23 11 1 1 . Failed 30 | . 2 . . . 21 7 . . . Catastrophic 7 | . . . . . 5 2 . . . Database Lockouts . | . . . . . . . . . . Manual 1 | . . . 1 . . . . . . Terminals 36 | . 6 . . . 22 8 . . . Fabricators . | . . . . . . . . . . Repair Stations 19 | . . . . . 16 3 . . . Recycling Units 4 | . . . . . 2 2 . . . Scanalyzers 9 | . . . . . 4 5 . . . Garrison Access . | . . . . . . . . . . Terminal Hacks 18 | . 4 1 1 . 6 4 1 1 . Prototype ID Bank 1 | . 1 . . . . . . . . Open Door 3 | . . 1 . . . . 1 1 . Open DSF 2 | . . . . . . 2 . . . Branch Access Points 1 | . 1 . . . . . . . . Emergency Access Points 1 | . . . . . . 1 . . . Alert Level 1 | . . . . . . 1 . . . Unreport Threat 1 | . . . . . 1 . . . . Locate Traps 4 | . 1 . . . 3 . . . . Disarm Traps 1 | . . . . . 1 . . . . Reprogram Traps 1 | . 1 . . . . . . . . Transport Status 1 | . . . . . 1 . . . . Proto ID Catalog 1 | . . . 1 . . . . . . Fabricator Hacks . | . . . . . . . . . . Repair Station Hacks 16 | . . . . . 13 3 . . . Scan Component 9 | . . . . . 7 2 . . . Repair 7 | . . . . . 6 1 . . . Recycling Unit Hacks 2 | . . . . . 2 . . . . Retrieve Components 2 | . . . . . 2 . . . . Scanalyzer 6 | . . . . . 2 4 . . . Retrieve Study 6 | . . . . . 2 4 . . . Garrison Access Hacks . | . . . . . . . . . . Unauthorized Hacks . | . . . . . . . . . . Terminals . | . . . . . . . . . . Fabricators . | . . . . . . . . . . Repair Stations . | . . . . . . . . . . Recycling Units . | . . . . . . . . . . Scanalyzers . | . . . . . . . . . . Garrison Access . | . . . . . . . . . . Data Cores Recovered . | . . . . . . . . . . Used . | . . . . . . . . . . Hacking Detections 14 | . 1 . . . 8 5 . . . Full Trace Events 8 | . . . . . 3 5 . . . Feedback Events . | . . . . . . . . . . Feedback Blocked . | . . . . . . . . . . Robot Schematics Acquired . | . . . . . . . . . . Robots Built . | . . . . . . . . . . Authchips . | . . . . . . . . . . Time . | . . . . . . . . . . Total Robot Build Rating . | . . . . . . . . . . Part Schematics Acquired . | . . . . . . . . . . Parts Built . | . . . . . . . . . . Authchips . | . . . . . . . . . . Time . | . . . . . . . . . . Total Part Build Rating . | . . . . . . . . . . Part Studies Acquired 5 | . . . . . 1 4 . . . Parts Repaired 6 | . . . . . 5 1 . . . Time 284 | . . . . . 252 32 . . . Parts Recycled . | . . . . . . . . . . Recycled Matter . | . . . . . . . . . . Retrieved Matter . | . . . . . . . . . . Retrieved Components 9 | . . . . . 9 . . . . Parts Scanalyzed . | . . . . . . . . . . Part Schematics Acquired . | . . . . . . . . . . Parts Damaged . | . . . . . . . . . . Bothacking | -11 -10 -10 -10 -9 -8 -7 -7 -7 -7 ------------ Run | Yrd Mat Min Exi Min Mat Fac Low Low Zio Used RIF Installer . | . . . . . . . . . . Robots Hacked . | . . . . . . . . . . Non-combat . | . . . . . . . . . . Combat . | . . . . . . . . . . Robot Hacks Applied . | . . . . . . . . . . Relay Couplers Released . | . . . . . . . . . . Fabnet Peak Effective % . | . . . . . . . . . . Robots Rewired . | . . . . . . . . . . Allies Hacked . | . . . . . . . . . . Hacks Repelled . | . . . . . . . . . . Allies | -11 -10 -10 -10 -9 -8 -7 -7 -7 -7 -------- Run | Yrd Mat Min Exi Min Mat Fac Low Low Zio Total Allies . | . . . . . . . . . . Largest Group . | . . . . . . . . . . Highest-Rated Group . | . . . . . . . . . . Highest-Rated Ally . | . . . . . . . . . . Total Orders . | . . . . . . . . . . Ally Attacks . | . . . . . . . . . . Total Damage . | . . . . . . . . . . Kills . | . . . . . . . . . . Allies Corrupted . | . . . . . . . . . . Allies Melted . | . . . . . . . . . . Intel | -11 -10 -10 -10 -9 -8 -7 -7 -7 -7 ------- Run | Yrd Mat Min Exi Min Mat Fac Low Low Zio Active Infowar (turns) 6372 | . 731 1141 301 511 3197 491 . . . Optics 3769 | . 731 1141 301 511 1085 . . . . Seismic 2603 | . . . . . 2112 491 . . . Robot Analysis Total . | . . . . . . . . . . Derelict Logs Recovered 8 | . . 2 . 3 . . 1 2 . Drone Launches . | . . . . . . . . . . Drone Recoveries . | . . . . . . . . . . Exploration | -11 -10 -10 -10 -9 -8 -7 -7 -7 -7 ------------- Run | Yrd Mat Min Exi Min Mat Fac Low Low Zio Turns Passed 11942 | 66 848 1141 301 511 3375 2628 676 953 1443 Spaces Moved 5526 | 41 447 637 234 340 1460 1346 334 383 304 Core 43 | 20 . . 1 . . . . 14 8 Treads 3328 | 21 447 637 112 229 1460 261 . 97 64 Legs 232 | . . . 121 111 . . . . . Wheels 899 | . . . . . . 899 . . . Hover 1024 | . . . . . . 186 334 272 232 Flight . | . . . . . . . . . . Fastest Speed 50 | 50 160 160 90 90 156 75 108 176 160 Average Speed 168 | 122 160 162 125 137 159 117 172 233 453 Slowest Speed 750 | 250 160 240 500 160 240 360 176 750 700 Overloaded Moves . | . . . . . . . . . . Propulsion Burnouts . | . . . . . . . . . . Robots Hopped . | . . . . . . . . . . Potential Cave-ins . | . . . . . . . . . . Cave-ins Triggered . | . . . . . . . . . . Exploration Rate (%) 57 | 4 57 98 67 67 94 26 50 61 48 Regions Visited 9 Branch Regions 6 Pre-discovered Areas 5 | . . 2 . 2 . . . 1 . Known Exits Taken 1 | . 1 . . . . . . . . Unknown Exits Taken 8 | 1 . 1 1 1 1 1 1 1 . Scrap Searched 8 | . . 1 . 3 . . 2 2 . Spaces Dug . | . . . . . . . . . . Terrain Destroyed 141 | . . 88 . . 3 16 . 34 . Melee . | . . . . . . . . . . Projectile 11 | . . . . . 3 2 . 6 . AOE 130 | . . 88 . . . 14 . 28 . Terrain Rammed . | . . . . . . . . . . Walls Destroyed . | . . . . . . . . . . Machines Disabled . | . . . . . . . . . . Actions | -11 -10 -10 -10 -9 -8 -7 -7 -7 -7 --------- Run | Yrd Mat Min Exi Min Mat Fac Low Low Zio Total 7325 | 50 507 699 241 365 2257 2058 404 414 330 Wait 1124 | . 9 20 . . 601 447 46 . 1 Move 5517 | 40 446 636 233 339 1459 1345 333 382 304 Hop . | . . . . . . . . . . Pick Up 53 | 2 9 6 . 2 11 17 4 2 . Fast Attach 53 | 6 1 1 3 . 18 20 1 2 1 Attach 33 | . . 1 . . 4 16 4 5 3 Detach 3 | . . . 2 . . 1 . . . Swap 29 | . 2 8 . 6 6 5 . 2 . Drop 60 | . 3 3 3 5 26 16 1 3 . Fire 424 | 2 37 22 . 11 132 166 15 18 21 Melee . | . . . . . . . . . . Ram 8 | . . . . . . 8 . . . Kick 1 | . . . . 1 . . . . . Crush 4 | . . 2 . 1 . 1 . . . Escape Stasis 16 | . . . . . . 16 . . . Rewire . | . . . . . . . . . . Trap . | . . . . . . . . . . Miscellaneous . | . . . . . . . . . . Route ------- -11/Scrapyard -10/Materials (discovered 4 exits: [*Mat] / *Min x2 / [*Sub]) -10/Mines (discovered 3 exits: [*Mat x2] / *Exi) -10/Exiles -9/Mines (discovered 2 exits: *Mat x2) -8/Materials (discovered 3 exits: *Fac x3) -7/Factory -7/Lower Caves -7/Lower Caves (discovered 2 exits: [*Fac] / [*Zio]) -7/Zion History --------- Turn | Location | Event 45 | -11/Scrapyard | Discovered new exit (range 12) 67 | -11/Scrapyard | Entered Materials 68 | -10/Materials | Met a group of wandering Federalists 256 | -10/Materials | Discovered new exit (range 10) 316 | -10/Materials | Build established: Mutant 345 | -10/Materials | Discovered new exit (range 18) 350 | -10/Materials | Identified exit to Mines 422 | -10/Materials | Discovered new exit (range 11) 915 | -10/Materials | Entered Mines 916 | -10/Mines | Assembled infested the area 925 | -10/Mines | Learned location of Storage (-8) 1212 | -10/Mines | Discovered new exit (range 9) 1456 | -10/Mines | Found a hidden stash of uninstalled traps 1635 | -10/Mines | Discovered new exit (range 8) 1657 | -10/Mines | Found the Drone Emporium 1675 | -10/Mines | Found Prototype Device 1766 | -10/Mines | Learned location of Recycling (-8) 1806 | -10/Mines | Core integrity fell below 50% 2048 | -10/Mines | Deemed a non-threat by the Exiles lab entrance 2050 | -10/Mines | Discovered new exit (range 5) 2056 | -10/Mines | Entered Exiles 2095 | -10/Exiles | Met 8R-AWN 2122 | -10/Exiles | Met EX-HEX 2167 | -10/Exiles | Met EX-BIN 2186 | -10/Exiles | Aligned with FarCom system 2188 | -10/Exiles | Given EX-Vault access code 2224 | -10/Exiles | Opened EX-Vault 2241 | -10/Exiles | Found Potential Leg 2248 | -10/Exiles | Found Potential Leg 2266 | -10/Exiles | Warned to stay clear of 0b10 Research branches 2289 | -10/Exiles | Met EX-DEC 2348 | -10/Exiles | Discovered new exit (range 10) 2357 | -10/Exiles | Left Exiles lab with Potential Leg 2357 | -10/Exiles | Entered Mines 2613 | -9/Mines | Found DCF Scrap (13 items) 2679 | -9/Mines | Learned Materials interactive machine intel 2839 | -9/Mines | Discovered new exit (range 8) 2851 | -9/Mines | Discovered new exit (range 12) 2868 | -9/Mines | Entered Materials 2868 | -8/Materials | Evolved 4 slots: Propulsion x2, Utility x2 2869 | -8/Materials | Loaded intel: 19 interactive machine locations 3551 | -8/Materials | Repaired Rocket Launcher 3596 | -8/Materials | Repaired Med. Treads 3994 | -8/Materials | Discovered new exit (range 16) 4344 | -8/Materials | Identified Decoy Drone Bay 4691 | -8/Materials | Discovered new exit (range 10) 5602 | -8/Materials | Discovered new exit (range 5) 5675 | -8/Materials | Repaired Med. Treads 5720 | -8/Materials | Repaired Med. Treads 5766 | -8/Materials | Repaired Med. Treads 6243 | -8/Materials | Entered Factory 6243 | -7/Factory | Evolved 2 slots: Utility x2 7299 | -7/Factory | Build established: Scavenger-Mutant 7691 | -7/Factory | Repaired Imp. Light Cannon+ 8050 | -7/Factory | Lost 4 parts (2n2u) 8169 | -7/Factory | Lost 3 parts (3n) 8643 | -7/Factory | First assault squad dispatched 8817 | -7/Factory | Discovered new exit (range 3) 8871 | -7/Factory | Entered Lower Caves 8918 | -7/Lower Caves | Attracted the attention of an 0b10 checkpoint 8922 | -7/Lower Caves | Core integrity fell below 50% 8961 | -7/Lower Caves | Lost 7 parts (4n1u2w) 9193 | -7/Lower Caves | Build established: Mutant 9510 | -7/Lower Caves | Discovered new exit (range 12) 9547 | -7/Lower Caves | Entered another Lower Caves area 9786 | -7/Lower Caves | Discovered new exit (range 4) 9912 | -7/Lower Caves | Encountered a Warlord checkpoint 9996 | -7/Lower Caves | Learned Factory terminal intel 10006 | -7/Lower Caves | Learned location of Extension (-5) 10006 | -7/Lower Caves | Spotted B-75 Beast 10056 | -7/Lower Caves | Destroyed B-75 Beast 10081 | -7/Lower Caves | Lost 7 parts (1p2n2u2w) 10372 | -7/Lower Caves | Discovered new exit (range 8) 10500 | -7/Lower Caves | Entered Zion 10606 | -7/Zion | System corruption cleaned by Quarantine Array 11693 | -7/Zion | Rebuked by Imprinter 11768 | -7/Zion | Attempted to imprint without authorization 11768 | -7/Zion | Attacked by Zionites 11844 | -7/Zion | Lost 3 parts (1n2w) 11936 | -7/Zion | Core integrity fell below 20% 11943 | -7/Zion | Destroyed by Y7-5IO(z) with Gauss Cannon Last Messages --------------- 11883_ Acquired 29 matter. 11886_ Acquired 6 matter. 11906_ System corrupted: Heat flow error (+142). 11920_ WH-OV7(z) pulls a Mak. Spear out of the Twisted Machinery. 11922_ Slug penetrates AU-HK2(M). J3-EUQ(z) bursts out of the Twisted Machinery. 11925_ Slug penetrates AU-HK2(M). 11925_ J3-EUQ(z) pulls a Mak. Axe out of the Twisted Machinery. 11927_ Lgt. Treads destroyed. 11929_ YR-QNN(z) pulls a Mak. Axe out of the Twisted Machinery. 11930_ Slug penetrates Reinforced Barrier. 11930_ Imp. Light Armor Plating destroyed. 11934_ Slug penetrates Twisted Machinery. RA-4C8(z) bursts out of the Twisted Machinery. 11935_ RA-4C8(z) pulls a Mak. Laser out of the Twisted Machinery. 11937_ J3-EUQ(z) destroyed. 11937_ Slug penetrates RA-4C8(z). 11939_ Enh. Nuclear Core destroyed. 11940_ Slug penetrates Twisted Machinery. 11941_ Coil Gun destroyed. Map ----- +----------------------------------------------------+ | ?????????????????????????????????????????????????? | | ?????????????????????????????????????????????????? | | ?????????????????????????????????????????????????? | | ?????????????????????????????????????????????????? | | ?????????????????????????????????????????????????? | | ?????????????????????????????????????????????????? | | ?????????????????????????????????????????????????? | | ?????????????????????????????????????????????????? | | ?????????????????????????????????????????????????? | | ?????????????????????????????????????????????????? | | ?????????????????????????????????????????????????? | | ?????????????????????????????????????????????????? | | ?????????????????????????????????????????????????? | | ?????????????????????????????????#""?????????????? | | ???????????????????????????????#"""" ? ???????? | | ???????????????????????????????"" ? ??????? | | ???????????????????????????###"" ? ? ? | | ??????????????????????????##"""" ?? ? | | ?????????????????????????##""""" """" ? | | ?????????????????????????#"" """" "? | | ???????????????####????###"" """" "" | | ???????????????""#"#####"""" """ "" | | ???????????????##"""""""""""" """"" "" | | ??????????""???#""" %"""""""""""""" "" | | ????????""""""?#""" b "" | | ??????? #"" z@z $ "" | | ????????"" ##"" =zzz"""""""" """ " | | ?????????"" "" ""#"""" """"" | | ?????????"" """##"""" """"" | | ?????????"" ""###""""" | | ????????"" ###" ##?#"" """ | | ??????? ??#"" "#?#" "" " | | ????????""""????##" ""#?#" """" "" | | ?????????????????#" ""##"" """"""""" | | ?????????????????#" ""##""" """""""" " | | ???????????#####""# """#""""" "" """ " | | ??????????##" "#### #"###"""" """ "" | | ??????????#" #"#?###"" """" "" | | ??????????#" #?#???#"" "" "" | | ??????????# ! #?????##"" "" "" " | | ??????????## #### #??????"#" "" """""" " | | ???????????# #??######??????#"" "" """""" | | ??????###### ######?????????""" "" """""" | | ??????"""""" ! """"??????????#" | | ?????######" ######???????###"" | | ?????# " ! * " #?????###"""" " "" | | ?????# " * "" #?????#""" "" """" | | ?????#"""" " " #?????#""" "" """"" | | ?????#""""" """""#??????##" """ """"" | | ?????#""""" """" #??????#""" """ ""#"" | +----------------------------------------------------+ Best States ------------- Heat Dissipation 48 Energy Generation 17 Energy Capacity 300 Matter Stores 450 Matter Capacity 450 Sight Range 18 Terrain Scan Density 10 Armor Coverage 1200 Utility Shielding 15 Evasion (%) 57 Recoil Reduction 4 Offensive Hacking 10 Item Schematics ----------------- None Robot Schematics ------------------ None Fabricated ------------ Nothing Repaired ---------- Rocket Launcher | 7% | -8/Materials Med. Treads | 56% | -8/Materials Med. Treads | 1% | -8/Materials Med. Treads | 25% | -8/Materials Med. Treads | 11% | -8/Materials Imp. Light Cannon | 18% | -7/Factory Studied --------- Hvy. Assault Rifle | -8/Materials | Hacked Imp. Light Cannon | -7/Factory | Hacked Wheel | -7/Factory | Hacked Com. Wheel | -7/Factory | Hacked Imp. Deuterium Engine | -7/Factory | Hacked Alien Tech Used ----------------- None Achievements -------------- None Challenges ------------ None Game ------ Seed ProjectileTerrabombMesh Manual? 0 Play Time 00:54:25 Cumulative 43.0 hours Start 2026.06.22 @ 14:21:15 End 2026.06.22 @ 15:13:33 Sessions 1 Manual Loads 0 Difficulty Rogue Special Mode None Game No. 80 Rogue 80 Adventurer 0 Explorer 0 Win Type - Total 0 Types 0/0/0/0/0/0/0/0/0/0 Lore% 22 Gallery% 23 Achievement% 20 Wizard Run 0 Options --------- Layout 0 ASCII 0 Keyboard 0 Movement Mouse Keybinds 0 Fullscreen 2 Font 24/Smallcaps Map View 76x50 Zoom Use 0% Tactical HUD 1 Map Filters NONE Filters NONE Steam 1 RUN: 503928c7-0ed9-466d-b9df-e32d5ccc2fd7